[Event "Niedersachsen-ch B 2024"]
[Site "Verden Aller"]
[Date "2024.01.06"]
[Round "6.24"]
[White "Rose, Simeon"]
[Black "Schlaetker, Christine"]
[Result "1-0"]
[ECO "C50"]
[WhiteElo "1368"]
[BlackElo "1745"]
[Annotator "NA RC"]
[PlyCount "105"]
[EventDate "2024.01.01"]
[EventType "swiss"]
[EventCountry "GER"]
[SourceTitle "playchess.com"]
[Source "ChessBase"]
[SourceQuality "1"]
[TimeControl "40/5400+30:1800+30"]

1. e4 {[%emt 0:00:02]} e5 {[%emt 0:00:06]} 2. Nf3 {[%emt 0:00:06]} Nc6 {[%emt 0:00:06]} 3. Bc4 {[%emt 0:00:06]} Bc5 {[%emt 0:00:12]} 4. d3 {[%emt 0:00:08]} h6 {[%emt 0:00:44]} 5. Be3 {[%emt 0:00:26]} Bb6 {[%emt 0:00:14]} 6. Nc3 {[%emt 0:00:11]} d6 {[%emt 0:00:12]} 7. Nd5 {[%emt 0:02:08]} Bd7 {[%emt 0:10:04]} 8. Nxb6 {[%emt 0:03:22]} axb6 {[%emt 0:00:09]} 9. a3 {[%emt 0:00:53]} Nf6 {[%emt 0:00:58]} 10. h3 {[%emt 0:01:08]} Ne7 {[%emt 0:02:43]} 11. O-O {[%emt 0:00:41]} b5 {[%emt 0:02:18]} 12. Bb3 {[%emt 0:01:07]} c5 {[%emt 0:00:50]} 13. Nd2 {[%emt 0:06:13]} Ng6 {[%emt 0:04:14]} 14. Ba2 {[%emt 0:07:50]} O-O {[%emt 0:02:54]} 15. c3 {[%emt 0:06:27]} Qc8 {[%emt 0:05:53]} 16. Qf3 {[%emt 0:02:23]} Be6 {[%emt 0:04:15]} 17. c4 {[%emt 0:07:36]} bxc4 {[%emt 0:02:25]} 18. Nxc4 {[%emt 0:02:10]} Qd8 {[%emt 0:00:28]} 19. Rfb1 {[%emt 0:05:41]} Nh4 {[%emt 0:05:26]} 20. Qe2 {[%emt 0:02:12]} b5 {[%emt 0:07:09]} 21. Nd2 {[%emt 0:01:51]} Qd7 {[%emt 0:04:23]} 22. Bxe6 {[%emt 0:02:26]} Qxe6 {[%emt 0:02:08]} 23. b4 {[%emt 0:02:46]} c4 {[%emt 0:02:31]} 24. dxc4 {[%emt 0:01:39]} bxc4 {[%emt 0:00:01]} 25. Qxc4 {[%emt 0:03:52]} Qxc4 {[%emt 0:00:39]} 26. Nxc4 {[%emt 0:00:06]} Nxe4 {[%emt 0:00:10]} 27. Rd1 {[%emt 0:03:14]} Rfd8 {[%emt 0:00:26]} 28. Bb6 {[%emt 0:01:12]} Nc3 {[%emt 0:06:58]} 29. Rd3 {[%emt 0:04:47]} Ne2+ {[%emt 0:05:07]} 30. Kf1 {[%emt 0:00:30]} Nf4 {[%emt 0:03:01]} 31. Rxd6 {[%emt 0:01:10]} Rxd6 {[%emt 0:00:12]} 32. Nxd6 {[%emt 0:00:11]} Nhxg2 {[%emt 0:01:04]} 33. a4 {[%emt 0:05:45]} Nh4 {[%emt 0:00:53]} 34. Nc4 {[%emt 0:01:47]} Nf3 {[%emt 0:01:00]} 35. a5 {[%emt 0:04:25]} Rc8 {[%emt 0:00:47]} 36. Bc5 {[%emt 0:05:13]} Nh2+ {[%emt 0:01:18]} 37. Ke1 {[%emt 0:01:50]} Nd3+ {[%emt 0:04:37]} 38. Ke2 {[%emt 0:03:13]} Nxb4 {[%emt 0:00:43]} 39. Bxb4 {[%emt 0:01:23]} Rxc4 {[%emt 0:00:11]} 40. a6 {[%emt 0:03:56]} Re4+ {[%emt 0:06:56]} 41. Kd3 {[%emt 0:33:10]} Rd4+ {[%emt 0:31:21]} 42. Ke2 {[%emt 0:01:04]} Re4+ {[%emt 0:06:23]} 43. Kd3 {[%emt 0:00:00]} Rd4+ {[%emt 0:00:00]} 44. Ke3 {[%emt 0:00:00]} Rd8 {[%emt 0:00:00]} 45. a7 {[%emt 0:00:00]} Ra8 {[%emt 0:00:00]} 46. Bd6 {[%emt 0:00:00]} f6 {[%emt 0:00:00]} 47. Bb8 {[%emt 0:00:00]} Kf7 {[%emt 0:00:00]} 48. Rh1 {[%emt 0:00:00]} Ke6 {[%emt 0:00:00]} 49. Rxh2 {[%emt 0:00:00]} Kf5 {[%emt 0:00:00]} 50. h4 {[%emt 0:00:00]} g5 {[%emt 0:00:00]} 51. hxg5 {[%emt 0:00:00]} Kxg5 {[%emt 0:00:00]} 52. Ke4 {[%emt 0:00:00]} h5 {[%emt 0:00:00]} 53. Rg2+ {[%emt 0:00:00]} 1-0

[Event "Niedersachsen-ch B 2024"]
[Site "Verden Aller"]
[Date "2024.01.06"]
[Round "6.25"]
[White "Schiel, Lucas"]
[Black "Frowein, Ernst Holger"]
[Result "0-1"]
[ECO "E61"]
[WhiteElo "1312"]
[BlackElo "1755"]
[Annotator "NA RC"]
[PlyCount "66"]
[EventDate "2024.01.01"]
[EventType "swiss"]
[EventCountry "GER"]
[SourceTitle "playchess.com"]
[Source "ChessBase"]
[SourceQuality "1"]
[TimeControl "40/5400+30:1800+30"]

1. d4 {[%emt 0:00:23]} Nf6 {[%emt 0:00:08]} 2. c4 {[%emt 0:00:04]} d6 {[%emt 0:00:13]} 3. Nc3 {[%emt 0:00:08]} g6 {[%emt 0:00:16]} 4. e4 {[%emt 0:00:07]} Nbd7 {[%emt 0:00:15]} 5. Nf3 {[%emt 0:02:21]} c5 {[%emt 0:02:10]} 6. d5 {[%emt 0:03:47]} Bg7 {[%emt 0:00:11]} 7. Bf4 {[%emt 0:03:11]} Nh5 {[%emt 0:03:32]} 8. Bd2 {[%emt 0:07:23]} O-O {[%emt 0:01:08]} 9. Be2 {[%emt 0:02:12]} Nhf6 {[%emt 0:00:44]} 10. Bf4 {[%emt 0:05:20]} Qa5 {[%emt 0:01:03]} 11. O-O {[%emt 0:03:20]} Re8 {[%emt 0:02:07]} 12. Re1 {[%emt 0:18:47]} Qb6 {[%emt 0:00:41]} 13. Qd2 {[%emt 0:05:28]} Ng4 {[%emt 0:10:26]} 14. Bg3 {[%emt 0:09:08]} Nge5 {[%emt 0:02:24]} 15. Bf1 {[%emt 0:03:01]} Nxf3+ {[%emt 0:01:57]} 16. gxf3 {[%emt 0:00:20]} Ne5 {[%emt 0:01:34]} 17. Bxe5 {[%emt 0:11:43]} Bxe5 {[%emt 0:00:08]} 18. f4 {[%emt 0:00:15]} Bg7 {[%emt 0:01:17]} 19. e5 {[%emt 0:03:19]} Bf5 {[%emt 0:04:20]} 20. Bd3 {[%emt 0:05:08]} Bh3 {[%emt 0:04:35]} 21. Qe3 {[%emt 0:08:24]} Bd7 {[%emt 0:00:25]} 22. b3 {[%emt 0:03:51]} a6 {[%emt 0:00:08]} 23. Ne2 {[%emt 0:00:08]} Qc7 {[%emt 0:00:16]} 24. Ng3 {[%emt 0:00:23]} Rad8 {[%emt 0:03:15]} 25. Rad1 {[%emt 0:00:17]} Qc8 {[%emt 0:05:02]} 26. e6 {[%emt 0:00:42]} fxe6 {[%emt 0:00:07]} 27. dxe6 {[%emt 0:00:03]} Bc6 {[%emt 0:00:30]} 28. f5 {[%emt 0:00:15]} Rf8 {[%emt 0:03:09]} 29. fxg6 {[%emt 0:02:16]} Bd4 {[%emt 0:03:26]} 30. Qh6 {[%emt 0:01:01]} Bxf2+ {[%emt 0:00:22]} 31. Kf1 {[%emt 0:00:42]} Be3+ {[%emt 0:00:07]} 32. Ke2 {[%emt 0:00:24]} Bxh6 {[%emt 0:00:06]} 33. gxh7+ {[%emt 0:00:04]} Kh8 {[%emt 0:00:21]} 0-1

[Event "Niedersachsen-ch B 2024"]
[Site "Verden Aller"]
[Date "2024.01.06"]
[Round "6.28"]
[White "Heckl, Philipp"]
[Black "Fize, Aleksandrs"]
[Result "1-0"]
[ECO "B21"]
[WhiteElo "1580"]
[BlackElo "1307"]
[Annotator "NA RC"]
[PlyCount "106"]
[EventDate "2024.01.01"]
[EventType "swiss"]
[EventCountry "GER"]
[SourceTitle "playchess.com"]
[Source "ChessBase"]
[SourceQuality "1"]
[TimeControl "40/5400+30:1800+30"]

1. e4 {[%emt 0:00:20]} c5 {[%emt 1:31:00]} 2. f4 {[%emt 0:02:37]} e6 {[%emt 0:00:00]} 3. Nf3 {[%emt 0:00:47]} Nc6 {[%emt 0:00:00]} 4. Be2 {[%emt 0:06:30]} a6 {[%emt 0:00:00]} 5. a4 {[%emt 0:00:17]} b6 {[%emt 0:00:00]} 6. d3 {[%emt 0:01:53]} Bb7 {[%emt 0:00:00]} 7. O-O {[%emt 0:00:22]} d6 {[%emt 0:00:00]} 8. f5 {[%emt 0:05:04]} exf5 {[%emt 0:00:00]} 9. exf5 {[%emt 0:00:10]} Nf6 {[%emt 0:00:00]} 10. Bg5 {[%emt 0:00:47]} Be7 {[%emt 0:00:00]} 11. c3 {[%emt 0:05:51]} O-O {[%emt 0:00:00]} 12. Na3 {[%emt 0:00:09]} Ng4 {[%emt 0:00:00]} 13. Bxe7 {[%emt 0:00:58]} Qxe7 {[%emt 0:00:00]} 14. Nc2 {[%emt 0:00:02]} Rfe8 {[%emt 0:00:00]} 15. Re1 {[%emt 0:00:23]} Nge5 {[%emt 0:00:00]} 16. d4 {[%emt 0:00:50]} cxd4 {[%emt 0:00:00]} 17. Ncxd4 {[%emt 0:00:02]} Nxd4 {[%emt 0:00:00]} 18. cxd4 {[%emt 0:01:18]} Nxf3+ {[%emt 0:00:00]} 19. Bxf3 {[%emt 0:01:02]} Qxe1+ {[%emt 0:00:00]} 20. Qxe1 {[%emt 0:00:04]} Rxe1+ {[%emt 0:00:00]} 21. Rxe1 {[%emt 0:00:50]} Bxf3 {[%emt 0:00:00]} 22. gxf3 {[%emt 0:00:35]} Kf8 {[%emt 0:00:00]} 23. Rc1 {[%emt 0:00:22]} Rb8 {[%emt 0:00:00]} 24. Rc6 {[%emt 0:00:16]} Ke7 {[%emt 0:00:00]} 25. Kf2 {[%emt 0:00:17]} Kd7 {[%emt 0:00:00]} 26. d5 {[%emt 0:00:32]} Rc8 {[%emt 0:00:00]} 27. Rxb6 {[%emt 0:00:18]} Rc2+ {[%emt 0:00:00]} 28. Kg3 {[%emt 0:00:32]} Kc7 {[%emt 0:00:00]} 29. Rxa6 {[%emt 0:00:49]} Rxb2 {[%emt 0:00:00]} 30. Ra7+ {[%emt 0:00:28]} Rb7 {[%emt 0:00:00]} 31. Ra8 {[%emt 0:01:42]} Rb8 {[%emt 0:00:00]} 32. Ra5 {[%emt 0:04:02]} f6 {[%emt 0:00:00]} 33. Kf4 {[%emt 0:05:47]} Rb4+ {[%emt 0:00:00]} 34. Ke3 {[%emt 0:00:29]} Kb6 {[%emt 0:16:30]} 35. Ra8 {[%emt 0:01:55]} Rh4 {[%emt 0:00:00]} 36. Rg8 {[%emt 0:04:29]} Rxa4 {[%emt 0:00:00]} 37. Rxg7 {[%emt 0:00:28]} Ra7 {[%emt 0:00:00]} 38. Rg8 {[%emt 0:02:03]} Re7+ {[%emt 0:00:00]} 39. Kd4 {[%emt 0:03:48]} Re5 {[%emt 0:00:00]} 40. Rc8 {[%emt 0:01:06]} Rxf5 {[%emt 0:00:00]} 41. Rc6+ {[%emt 0:30:40]} Kb7 {[%emt 0:00:00]} 42. Rxd6 {[%emt 0:00:31]} h5 {[%emt 0:00:00]} 43. Ke4 {[%emt 0:04:18]} Re5+ {[%emt 0:00:00]} 44. Kf4 {[%emt 0:00:58]} Kc7 {[%emt 0:00:00]} 45. Rxf6 {[%emt 0:00:44]} Rxd5 {[%emt 0:00:00]} 46. Rf5 {[%emt 0:00:23]} Rd4+ {[%emt 0:00:00]} 47. Kg5 {[%emt 0:00:43]} Rd2 {[%emt 0:00:00]} 48. h4 {[%emt 0:00:22]} Kd7 {[%emt 0:00:00]} 49. Kxh5 {[%emt 0:03:17]} Ke6 {[%emt 0:00:00]} 50. Ra5 {[%emt 0:07:32]} Rd3 {[%emt 0:00:00]} 51. f4 {[%emt 0:00:52]} Rd8 {[%emt 0:00:00]} 52. Kg4 {[%emt 0:01:21]} Rg8+ {[%emt 0:00:00]} 53. Rg5 {[%emt 0:06:07]} Rxg5+ {[%emt 0:00:00]} 1-0

[Event "Niedersachsen-ch B 2024"]
[Site "Verden Aller"]
[Date "2024.01.06"]
[Round "6.29"]
[White "Stockburger, Alexander"]
[Black "Rinke, Alexander"]
[Result "1/2-1/2"]
[ECO "B15"]
[WhiteElo "1573"]
[BlackElo "1296"]
[Annotator "NA RC"]
[PlyCount "72"]
[EventDate "2024.01.01"]
[EventType "swiss"]
[EventCountry "GER"]
[SourceTitle "playchess.com"]
[Source "ChessBase"]
[SourceQuality "1"]
[TimeControl "40/5400+30:1800+30"]

1. e4 {[%emt 0:00:04]} c6 {[%emt 0:00:11]} 2. Nc3 {[%emt 0:00:29]} d5 {[%emt 0:00:06]} 3. Nf3 {[%emt 0:00:45]} dxe4 {[%emt 0:00:19]} 4. Nxe4 {[%emt 0:00:07]} Nf6 {[%emt 0:00:08]} 5. Nxf6+ {[%emt 0:01:08]} exf6 {[%emt 0:00:08]} 6. d4 {[%emt 0:00:56]} Bd6 {[%emt 0:01:20]} 7. Bd3 {[%emt 0:01:37]} O-O {[%emt 0:02:05]} 8. O-O {[%emt 0:00:11]} Be6 {[%emt 0:00:22]} 9. c3 {[%emt 0:00:43]} Nd7 {[%emt 0:01:22]} 10. Bc2 {[%emt 0:01:33]} Re8 {[%emt 0:05:49]} 11. Qd3 {[%emt 0:02:35]} g6 {[%emt 0:07:18]} 12. Bh6 {[%emt 0:04:23]} Nb6 {[%emt 0:06:15]} 13. Qd2 {[%emt 0:03:20]} Qc7 {[%emt 0:08:08]} 14. b3 {[%emt 0:06:20]} Nd5 {[%emt 0:07:14]} 15. Rfe1 {[%emt 0:03:02]} Qa5 {[%emt 0:04:47]} 16. b4 {[%emt 0:03:07]} Qb5 {[%emt 0:04:21]} 17. Bd3 {[%emt 0:03:10]} Qb6 {[%emt 0:00:31]} 18. a3 {[%emt 0:01:47]} Qc7 {[%emt 0:05:20]} 19. c4 {[%emt 0:04:56]} Bf4 {[%emt 0:02:12]} 20. Bxf4 {[%emt 0:00:50]} Nxf4 {[%emt 0:00:41]} 21. Rac1 {[%emt 0:01:47]} Nxd3 {[%emt 0:01:36]} 22. Qxd3 {[%emt 0:00:09]} Bf5 {[%emt 0:02:28]} 23. Qc3 {[%emt 0:02:02]} Rac8 {[%emt 0:07:03]} 24. Re3 {[%emt 0:06:12]} Qd7 {[%emt 0:07:52]} 25. Rce1 {[%emt 0:02:22]} Rxe3 {[%emt 0:01:42]} 26. Qxe3 {[%emt 0:01:14]} Rd8 {[%emt 0:01:37]} 27. h3 {[%emt 0:04:23]} Be6 {[%emt 0:03:43]} 28. c5 {[%emt 0:04:57]} Bd5 {[%emt 0:04:42]} 29. Rd1 {[%emt 0:01:57]} Re8 {[%emt 0:03:02]} 30. Qf4 {[%emt 0:01:07]} Re6 {[%emt 0:01:37]} 31. Rd3 {[%emt 0:01:28]} Qe7 {[%emt 0:01:27]} 32. Re3 {[%emt 0:00:16]} Rxe3 {[%emt 0:01:09]} 33. fxe3 {[%emt 0:01:40]} Qe4 {[%emt 0:01:49]} 34. Qxe4 {[%emt 0:02:18]} Bxe4 {[%emt 0:00:07]} 35. Nd2 {[%emt 0:00:19]} Bd5 {[%emt 0:01:46]} 36. e4 {[%emt 0:01:19]} Be6 {[%emt 0:00:39]} 1/2-1/2

[Event "Niedersachsen-ch B 2024"]
[Site "Verden Aller"]
[Date "2024.01.06"]
[Round "6.33"]
[White "Sauer, Ben"]
[Black "Wildner, Jens Martin"]
[Result "0-1"]
[ECO "B13"]
[WhiteElo "1427"]
[BlackElo "1634"]
[Annotator "NA RC"]
[PlyCount "86"]
[EventDate "2024.01.01"]
[EventType "swiss"]
[EventCountry "GER"]
[SourceTitle "playchess.com"]
[Source "ChessBase"]
[SourceQuality "1"]
[TimeControl "40/5400+30:1800+30"]

1. e4 {[%emt 0:00:03]} c6 {[%emt 0:00:03]} 2. d4 {[%emt 0:00:08]} d5 {[%emt 0:00:05]} 3. exd5 {[%emt 0:00:06]} cxd5 {[%emt 0:00:08]} 4. Bd3 {[%emt 0:00:13]} Nc6 {[%emt 0:00:25]} 5. c3 {[%emt 0:00:19]} g6 {[%emt 0:01:47]} 6. Bf4 {[%emt 0:00:41]} Bf5 {[%emt 0:00:36]} 7. Nf3 {[%emt 0:00:35]} Bxd3 {[%emt 0:02:41]} 8. Qxd3 {[%emt 0:00:07]} Nf6 {[%emt 0:00:12]} 9. Nbd2 {[%emt 0:01:38]} Bg7 {[%emt 0:00:12]} 10. O-O {[%emt 0:00:28]} O-O {[%emt 0:00:09]} 11. h3 {[%emt 0:00:46]} e6 {[%emt 0:01:19]} 12. Rfe1 {[%emt 0:01:21]} a6 {[%emt 0:02:19]} 13. a4 {[%emt 0:02:57]} Nd7 {[%emt 0:17:34]} 14. Ne5 {[%emt 0:04:10]} Ndxe5 {[%emt 0:01:22]} 15. dxe5 {[%emt 0:02:47]} Qc7 {[%emt 0:01:12]} 16. Nf3 {[%emt 0:01:09]} Na5 {[%emt 0:01:27]} 17. Nd2 {[%emt 0:08:08]} Rfc8 {[%emt 0:01:18]} 18. Bh2 {[%emt 0:03:21]} Bh6 {[%emt 0:13:37]} 19. Kh1 {[%emt 0:09:16]} Bxd2 {[%emt 0:00:10]} 20. Qxd2 {[%emt 0:00:05]} Nb3 {[%emt 0:00:10]} 21. Qf4 {[%emt 0:01:59]} Nxa1 {[%emt 0:00:19]} 22. Rxa1 {[%emt 0:00:01]} Qe7 {[%emt 0:07:04]} 23. Qh6 {[%emt 0:02:56]} Qf8 {[%emt 0:14:22]} 24. Qxf8+ {[%emt 0:01:27]} Kxf8 {[%emt 0:00:06]} 25. Kg1 {[%emt 0:00:39]} Rc4 {[%emt 0:00:05]} 26. f3 {[%emt 0:00:42]} Rac8 {[%emt 0:00:22]} 27. Kf1 {[%emt 0:00:37]} d4 {[%emt 0:01:53]} 28. cxd4 {[%emt 0:01:33]} Rxd4 {[%emt 0:00:26]} 29. Bg1 {[%emt 0:00:49]} Rd5 {[%emt 0:02:28]} 30. f4 {[%emt 0:02:04]} Rc2 {[%emt 0:00:59]} 31. Rb1 {[%emt 0:01:19]} Rdd2 {[%emt 0:02:43]} 32. g4 {[%emt 0:00:43]} Rxb2 {[%emt 0:00:37]} 33. Rxb2 {[%emt 0:00:13]} Rxb2 {[%emt 0:00:06]} 34. Ke1 {[%emt 0:00:51]} Ra2 {[%emt 0:00:13]} 35. a5 {[%emt 0:00:28]} Rxa5 {[%emt 0:00:21]} 36. Bb6 {[%emt 0:00:12]} Ra2 {[%emt 0:00:14]} 37. Bc5+ {[%emt 0:00:21]} Ke8 {[%emt 0:00:09]} 38. Kd1 {[%emt 0:00:34]} Kd7 {[%emt 0:00:23]} 39. Kc1 {[%emt 0:00:33]} Kc6 {[%emt 0:00:13]} 40. Kb1 {[%emt 0:00:23]} Rh2 {[%emt 0:00:16]} 41. g5 {[%emt 0:30:30]} Kxc5 {[%emt 0:30:23]} 42. h4 {[%emt 0:00:13]} Kc4 {[%emt 0:00:19]} 43. f5 {[%emt 0:00:19]} Kb3 {[%emt 0:00:57]} 0-1

[Event "Niedersachsen-ch B 2024"]
[Site "Verden Aller"]
[Date "2024.01.06"]
[Round "6.34"]
[White "Nechitaylo, Lev"]
[Black "Steven, Matthias"]
[Result "1/2-1/2"]
[ECO "B22"]
[WhiteElo "1456"]
[BlackElo "1284"]
[Annotator "NA RC"]
[PlyCount "105"]
[EventDate "2024.01.01"]
[EventType "swiss"]
[EventCountry "GER"]
[SourceTitle "playchess.com"]
[Source "ChessBase"]
[SourceQuality "1"]
[TimeControl "40/5400+30:1800+30"]

1. e4 {[%emt 0:00:00]} c5 {[%emt 0:00:09]} 2. c3 {[%emt 0:00:08]} d5 {[%emt 0:00:09]} 3. exd5 {[%emt 0:00:04]} Qxd5 {[%emt 0:00:10]} 4. Nf3 {[%emt 0:00:03]} e5 {[%emt 0:03:01]} 5. Bb5+ {[%emt 0:01:05]} Bd7 {[%emt 0:00:21]} 6. Bxd7+ {[%emt 0:00:13]} Nxd7 {[%emt 0:00:06]} 7. O-O {[%emt 0:00:10]} Bd6 {[%emt 0:01:16]} 8. d4 {[%emt 0:00:47]} cxd4 {[%emt 0:00:14]} 9. cxd4 {[%emt 0:00:05]} exd4 {[%emt 0:00:07]} 10. Nxd4 {[%emt 0:00:08]} Bc5 {[%emt 0:04:20]} 11. Be3 {[%emt 0:01:53]} Ngf6 {[%emt 0:05:16]} 12. Nc3 {[%emt 0:00:32]} Qd6 {[%emt 0:02:26]} 13. Ndb5 {[%emt 0:02:01]} Qxd1 {[%emt 0:01:26]} 14. Raxd1 {[%emt 0:00:18]} O-O {[%emt 0:01:23]} 15. Bxc5 {[%emt 0:03:38]} Nxc5 {[%emt 0:00:33]} 16. Nc7 {[%emt 0:00:52]} Rad8 {[%emt 0:03:46]} 17. N7d5 {[%emt 0:00:57]} Nxd5 {[%emt 0:01:09]} 18. Nxd5 {[%emt 0:00:20]} h6 {[%emt 0:03:57]} 19. Ne3 {[%emt 0:03:27]} Ne6 {[%emt 0:06:02]} 20. g3 {[%emt 0:01:21]} g5 {[%emt 0:03:25]} 21. Ng4 {[%emt 0:05:52]} Kg7 {[%emt 0:01:44]} 22. f4 {[%emt 0:02:42]} gxf4 {[%emt 0:10:01]} 23. gxf4 {[%emt 0:00:27]} h5 {[%emt 0:04:00]} 24. Ne3 {[%emt 0:04:11]} Rxd1 {[%emt 0:01:32]} 25. Nxd1 {[%emt 0:00:10]} Rd8 {[%emt 0:00:34]} 26. Nc3 {[%emt 0:00:44]} Rd2 {[%emt 0:00:42]} 27. f5 {[%emt 0:00:30]} Ng5 {[%emt 0:02:52]} 28. b3 {[%emt 0:06:41]} Rc2 {[%emt 0:05:15]} 29. Nb5 {[%emt 0:09:34]} Rxa2 {[%emt 0:03:00]} 30. Nd6 {[%emt 0:00:43]} Rb2 {[%emt 0:04:23]} 31. Nxb7 {[%emt 0:00:52]} Rxb3 {[%emt 0:00:08]} 32. Nd6 {[%emt 0:00:52]} Ra3 {[%emt 0:00:28]} 33. Kg2 {[%emt 0:01:46]} a5 {[%emt 0:01:19]} 34. h4 {[%emt 0:02:19]} Nh7 {[%emt 0:01:40]} 35. Re1 {[%emt 0:01:02]} Kf6 {[%emt 0:03:40]} 36. Re8 {[%emt 0:00:48]} Ra4 {[%emt 0:02:43]} 37. Kg3 {[%emt 0:01:41]} Rg4+ {[%emt 0:01:13]} 38. Kh3 {[%emt 0:00:51]} a4 {[%emt 0:00:33]} 39. Ra8 {[%emt 0:01:35]} Ke7 {[%emt 0:00:48]} 40. Nc8+ {[%emt 0:00:39]} Kf6 {[%emt 0:00:43]} 41. Nb6 {[%emt 0:30:11]} Kxf5 {[%emt 0:30:24]} 42. Nxa4 {[%emt 0:00:08]} Nf6 {[%emt 0:00:46]} 43. Nc3 {[%emt 0:01:45]} Kf4 {[%emt 0:06:59]} 44. Ne2+ {[%emt 0:09:34]} Kf3 {[%emt 0:00:32]} 45. Nc1 {[%emt 0:00:31]} Ne4 {[%emt 0:02:08]} 46. Ra3+ {[%emt 0:00:25]} Kf2 {[%emt 0:04:20]} 47. Nd3+ {[%emt 0:00:26]} Kf1 {[%emt 0:01:26]} 48. Ra1+ {[%emt 0:02:06]} Ke2 {[%emt 0:00:10]} 49. Ne5 {[%emt 0:00:43]} Nf2+ {[%emt 0:01:28]} 50. Kh2 {[%emt 0:00:06]} Rf4 {[%emt 0:05:39]} 51. Ra2+ {[%emt 0:00:28]} Ke3 {[%emt 0:00:47]} 52. Ra3+ {[%emt 0:01:29]} Ke4 {[%emt 0:00:43]} 53. Nc6 {[%emt 0:00:34]} 1/2-1/2

[Event "Niedersachsen-ch B 2024"]
[Site "Verden Aller"]
[Date "2024.01.06"]
[Round "6.35"]
[White "Oblender, Rudi"]
[Black "Margaryan, Venera"]
[Result "0-1"]
[ECO "B22"]
[WhiteElo "1511"]
[BlackElo "1473"]
[Annotator "NA RC"]
[PlyCount "88"]
[EventDate "2024.01.01"]
[EventType "swiss"]
[EventCountry "GER"]
[SourceTitle "playchess.com"]
[Source "ChessBase"]
[SourceQuality "1"]
[TimeControl "40/5400+30:1800+30"]

1. e4 {[%emt 0:00:02]} e6 {[%emt 0:00:04]} 2. d4 {[%emt 0:00:02]} d5 {[%emt 0:00:06]} 3. Nc3 {[%emt 0:00:02]} dxe4 {[%emt 0:00:09]} 4. Nxe4 {[%emt 0:00:05]} Nd7 {[%emt 0:00:08]} 5. Nf3 {[%emt 0:00:29]} Ngf6 {[%emt 0:00:09]} 6. Nxf6+ {[%emt 0:00:33]} Nxf6 {[%emt 0:00:07]} 7. c3 {[%emt 0:00:17]} c5 {[%emt 0:00:45]} 8. Bb5+ {[%emt 0:23:28]} Bd7 {[%emt 0:02:51]} 9. Bxd7+ {[%emt 0:00:08]} Qxd7 {[%emt 0:00:16]} 10. O-O {[%emt 0:00:21]} cxd4 {[%emt 0:00:48]} 11. Nxd4 {[%emt 0:00:04]} Bc5 {[%emt 0:01:43]} 12. Be3 {[%emt 0:00:15]} Nd5 {[%emt 0:02:20]} 13. Nc2 {[%emt 0:04:50]} Nxe3 {[%emt 0:01:46]} 14. Qxd7+ {[%emt 0:00:05]} Kxd7 {[%emt 0:00:26]} 15. Nxe3 {[%emt 0:00:03]} Ke7 {[%emt 1:26:22]} 16. b4 {[%emt 0:00:37]} Bxe3 {[%emt 0:00:00]} 17. fxe3 {[%emt 0:00:14]} Rac8 {[%emt 0:00:00]} 18. Rac1 {[%emt 0:00:23]} Rhd8 {[%emt 0:00:00]} 19. Rfe1 {[%emt 0:01:23]} b5 {[%emt 0:00:00]} 20. Kf2 {[%emt 0:00:37]} Rd3 {[%emt 0:00:00]} 21. c4 {[%emt 0:01:43]} Rxc4 {[%emt 0:00:00]} 22. Rxc4 {[%emt 0:00:06]} bxc4 {[%emt 0:00:00]} 23. Rc1 {[%emt 0:00:05]} c3 {[%emt 0:00:00]} 24. a4 {[%emt 0:01:31]} Kd6 {[%emt 0:00:00]} 25. Ke2 {[%emt 0:04:49]} Rd2+ {[%emt 0:00:00]} 26. Ke1 {[%emt 0:00:03]} Rxg2 {[%emt 0:00:00]} 27. Rxc3 {[%emt 0:00:04]} Rxh2 {[%emt 0:00:00]} 28. Rc8 {[%emt 0:00:13]} Ra2 {[%emt 0:00:00]} 29. a5 {[%emt 0:00:06]} h5 {[%emt 0:00:00]} 30. Ra8 {[%emt 0:01:18]} h4 {[%emt 0:00:00]} 31. Kf1 {[%emt 0:00:02]} h3 {[%emt 0:00:00]} 32. Kg1 {[%emt 0:00:01]} g5 {[%emt 0:00:00]} 33. Rxa7 {[%emt 0:00:05]} f5 {[%emt 0:00:00]} 34. Rg7 {[%emt 0:01:32]} g4 {[%emt 0:00:00]} 35. e4 {[%emt 0:00:12]} fxe4 {[%emt 0:00:00]} 36. Rxg4 {[%emt 0:00:01]} h2+ {[%emt 0:00:00]} 37. Kh1 {[%emt 0:00:06]} e3 {[%emt 0:00:00]} 38. Re4 {[%emt 0:01:50]} e2 {[%emt 0:00:00]} 39. a6 {[%emt 0:01:46]} Ra1+ {[%emt 0:00:00]} 40. Kxh2 {[%emt 0:00:07]} e1=Q {[%emt 0:00:00]} 41. a7 {[%emt 0:30:07]} Qxe4 {[%emt 0:16:19]} 42. a8=N {[%emt 0:00:06]} Qd3 {[%emt 0:01:18]} 43. Nb6 {[%emt 0:00:06]} Ra2+ {[%emt 0:00:09]} 44. Kg1 {[%emt 0:00:04]} Qd1# {[%emt 0:00:41]} 0-1

[Event "Niedersachsen-ch B 2024"]
[Site "Verden Aller"]
[Date "2024.01.07"]
[Round "7.2"]
[White "Silber, Stefanie"]
[Black "Richter, Silas"]
[Result "1-0"]
[ECO "A29"]
[WhiteElo "1581"]
[BlackElo "1614"]
[Annotator "NA RC"]
[PlyCount "45"]
[EventDate "2024.01.01"]
[EventType "swiss"]
[EventCountry "GER"]
[SourceTitle "playchess.com"]
[Source "ChessBase"]
[SourceQuality "1"]
[TimeControl "40/5400+30:1800+30"]

1. c4 {[%emt 0:06:21]} e5 {[%emt 0:00:04]} 2. g3 {[%emt 0:00:19]} Nf6 {[%emt 0:00:03]} 3. Bg2 {[%emt 0:00:12]} d5 {[%emt 0:00:04]} 4. cxd5 {[%emt 0:02:25]} Nxd5 {[%emt 0:00:04]} 5. Nc3 {[%emt 0:04:09]} Be6 {[%emt 0:00:08]} 6. Nf3 {[%emt 0:00:27]} Nc6 {[%emt 0:00:12]} 7. O-O {[%emt 0:02:02]} Nxc3 {[%emt 0:00:07]} 8. bxc3 {[%emt 0:04:01]} e4 {[%emt 0:01:26]} 9. Ne1 {[%emt 0:01:09]} f5 {[%emt 0:00:39]} 10. d4 {[%emt 0:10:12]} Qd7 {[%emt 0:01:27]} 11. f3 {[%emt 0:03:51]} exf3 {[%emt 0:04:18]} 12. Nxf3 {[%emt 0:00:44]} O-O-O {[%emt 0:00:38]} 13. Qa4 {[%emt 0:02:16]} Be7 {[%emt 0:03:08]} 14. Ne5 {[%emt 0:07:00]} Nxe5 {[%emt 0:04:16]} 15. Qxa7 {[%emt 0:00:17]} Qb5 {[%emt 0:01:55]} 16. Ba3 {[%emt 0:39:24]} Bxa3 {[%emt 0:06:44]} 17. Rab1 {[%emt 0:03:06]} Bb2 {[%emt 0:05:03]} 18. dxe5 {[%emt 0:00:41]} Rhe8 {[%emt 0:06:19]} 19. a4 {[%emt 0:01:23]} Qb3 {[%emt 0:00:44]} 20. a5 {[%emt 0:01:31]} Bd5 {[%emt 0:16:26]} 21. Rfd1 {[%emt 0:04:57]} Qa2 {[%emt 0:28:34]} 22. e4 {[%emt 0:02:46]} fxe4 {[%emt 0:03:28]} 23. Bh3+ {[%emt 0:00:19]} 1-0